[Event "Live Chess"]
[Site "Chess.com"]
[Date "2023.05.21"]
[Round "-"]
[White "smoggyrabbit"]
[Black "ameetghasi100"]
[Result "0-1"]
[WhiteElo "1650"]
[BlackElo "2606"]
[TimeControl "300"]
[EndTime "6:03:11 PDT"]
[Termination "ameetghasi100 won on time"]

1. d4 {[%clk 0:04:57.7]} 1... c5 {[%clk 0:04:59.9]} 2. d5 {[%clk 0:04:54]} 2...
Nc6 {[%clk 0:04:59.8]} 3. dxc6 {[%clk 0:04:52.4]} 3... bxc6 {[%clk 0:04:58.6]}
4. Nc3 {[%clk 0:04:49.9]} 4... Nf6 {[%clk 0:04:58.5]} 5. Nf3 {[%clk 0:04:48.2]}
5... d5 {[%clk 0:04:57.4]} 6. Bf4 {[%clk 0:04:41.1]} 6... g6 {[%clk 0:04:55.6]}
7. e3 {[%clk 0:04:33.7]} 7... Bg7 {[%clk 0:04:54.7]} 8. Be2 {[%clk 0:04:25.7]}
8... O-O {[%clk 0:04:53.8]} 9. O-O {[%clk 0:04:24.3]} 9... Bb7 {[%clk
0:04:51.8]} 10. Na4 {[%clk 0:03:44.9]} 10... c4 {[%clk 0:04:49.1]} 11. Nc5
{[%clk 0:03:37.7]} 11... Bc8 {[%clk 0:04:47.6]} 12. Ne5 {[%clk 0:03:19.8]} 12...
Qb6 {[%clk 0:04:46.7]} 13. Na4 {[%clk 0:03:15.4]} 13... Qa6 {[%clk 0:04:43.9]}
14. Nc3 {[%clk 0:03:07.1]} 14... Ne8 {[%clk 0:04:41.5]} 15. e4 {[%clk
0:02:37.7]} 15... e6 {[%clk 0:04:39]} 16. exd5 {[%clk 0:02:10.1]} 16... cxd5
{[%clk 0:04:38.9]} 17. b3 {[%clk 0:01:49.5]} 17... Qa5 {[%clk 0:04:32.3]} 18.
Na4 {[%clk 0:01:26.6]} 18... Nf6 {[%clk 0:04:15.7]} 19. Nc6 {[%clk 0:00:59.3]}
19... Qa6 {[%clk 0:04:11.9]} 20. Ne7+ {[%clk 0:00:54.4]} 20... Kh8 {[%clk
0:04:10.7]} 21. Nxc8 {[%clk 0:00:42.4]} 21... Raxc8 {[%clk 0:04:10.6]} 22. Be5
{[%clk 0:00:34.7]} 22... Ne4 {[%clk 0:04:05.9]} 23. Bxg7+ {[%clk 0:00:30.9]}
23... Kxg7 {[%clk 0:04:05.8]} 24. Qd4+ {[%clk 0:00:28.5]} 24... Nf6 {[%clk
0:04:03.2]} 25. g4 {[%clk 0:00:22.1]} 25... e5 {[%clk 0:04:01]} 26. Qxe5 {[%clk
0:00:20.1]} 26... Rfe8 {[%clk 0:03:58.5]} 27. Qd4 {[%clk 0:00:16.4]} 27... Re4
{[%clk 0:03:52.5]} 28. Nc5 {[%clk 0:00:11.2]} 28... Qb6 {[%clk 0:03:49]} 29.
Nxe4 {[%clk 0:00:06.4]} 29... Qxd4 {[%clk 0:03:47.4]} 30. Nxf6 {[%clk
0:00:05.7]} 30... Qxf6 {[%clk 0:03:47.3]} 31. Kh1 {[%clk 0:00:03.5]} 31... Qh4
{[%clk 0:03:42.2]} 0-1

[Event "Live Chess"]
[Site "Chess.com"]
[Date "2023.05.21"]
[Round "-"]
[White "Bot_Boy"]
[Black "romchyk1219"]
[Result "0-1"]
[WhiteElo "332"]
[BlackElo "648"]
[TimeControl "300"]
[EndTime "6:03:18 PDT"]
[Termination "romchyk1219 won on time"]

1. e4 {[%clk 0:04:57.1]} 1... d6 {[%clk 0:04:57.7]} 2. Nf3 {[%clk 0:04:56.2]}
2... Nf6 {[%clk 0:04:55]} 3. Nc3 {[%clk 0:04:52.5]} 3... g6 {[%clk 0:04:54]} 4.
Bc4 {[%clk 0:04:50.7]} 4... Bg7 {[%clk 0:04:52.7]} 5. d3 {[%clk 0:04:45.6]} 5...
O-O {[%clk 0:04:51.7]} 6. O-O {[%clk 0:04:43.5]} 6... e5 {[%clk 0:04:47.6]} 7.
Bg5 {[%clk 0:04:40.2]} 7... Nc6 {[%clk 0:04:44.1]} 8. Qd2 {[%clk 0:04:16.4]}
8... Nd4 {[%clk 0:04:34.5]} 9. Nxd4 {[%clk 0:03:48.9]} 9... exd4 {[%clk
0:04:32]} 10. Nd5 {[%clk 0:03:42.1]} 10... c6 {[%clk 0:04:27]} 11. Nxf6+ {[%clk
0:03:30.2]} 11... Bxf6 {[%clk 0:04:26.9]} 12. Bxf6 {[%clk 0:03:27.6]} 12... Qxf6
{[%clk 0:04:26.8]} 13. c3 {[%clk 0:03:13.6]} 13... dxc3 {[%clk 0:04:24.6]} 14.
Qxc3 {[%clk 0:03:10.2]} 14... Qg5 {[%clk 0:04:21.1]} 15. Kh1 {[%clk 0:02:40.7]}
15... d5 {[%clk 0:04:03.3]} 16. exd5 {[%clk 0:02:21.4]} 16... cxd5 {[%clk
0:04:03.2]} 17. f4 {[%clk 0:02:07.6]} 17... Qg4 {[%clk 0:03:49]} 18. Bxd5 {[%clk
0:01:59.8]} 18... Rd8 {[%clk 0:03:36.9]} 19. Qc4 {[%clk 0:01:45.1]} 19... Qf5
{[%clk 0:03:24.9]} 20. Bxf7+ {[%clk 0:01:18.6]} 20... Qxf7 {[%clk 0:03:19]} 21.
Qxf7+ {[%clk 0:01:02.4]} 21... Kxf7 {[%clk 0:03:18.9]} 22. Rae1 {[%clk
0:00:55.6]} 22... Re8 {[%clk 0:03:14.5]} 23. Rxe8 {[%clk 0:00:38.5]} 23... Kxe8
{[%clk 0:03:14.4]} 24. h3 {[%clk 0:00:29.3]} 24... Bf5 {[%clk 0:03:08.2]} 25. d4
{[%clk 0:00:21.4]} 25... Rd8 {[%clk 0:03:07]} 26. Rd1 {[%clk 0:00:12.9]} 26...
Be6 {[%clk 0:03:03.3]} 27. g4 {[%clk 0:00:10.2]} 27... Bxa2 {[%clk 0:02:59.3]}
28. Re1+ {[%clk 0:00:08.2]} 28... Kf7 {[%clk 0:02:56.7]} 29. Re4 {[%clk
0:00:05]} 29... Bd5 {[%clk 0:02:53.7]} 0-1

[Event "Live Chess"]
[Site "Chess.com"]
[Date "2023.05.21"]
[Round "-"]
[White "Nazar_777"]
[Black "1600x"]
[Result "0-1"]
[WhiteElo "1568"]
[BlackElo "1875"]
[TimeControl "300"]
[EndTime "6:03:18 PDT"]
[Termination "1600x won by checkmate"]

1. e3 {[%clk 0:04:57.9]} 1... e5 {[%clk 0:04:55.6]} 2. h4 {[%clk 0:04:54.8]}
2... d5 {[%clk 0:04:53.6]} 3. a3 {[%clk 0:04:53.1]} 3... Nf6 {[%clk 0:04:51.8]}
4. c4 {[%clk 0:04:52.3]} 4... d4 {[%clk 0:04:50.5]} 5. Nf3 {[%clk 0:04:50.5]}
5... Bd6 {[%clk 0:04:48]} 6. Be2 {[%clk 0:04:49.2]} 6... d3 {[%clk 0:04:39.4]}
7. Bf1 {[%clk 0:04:47.7]} 7... e4 {[%clk 0:04:37.2]} 8. Ng5 {[%clk 0:04:46.5]}
8... h6 {[%clk 0:04:35.6]} 9. Nh3 {[%clk 0:04:45.2]} 9... Bg4 {[%clk 0:04:09]}
10. Qb3 {[%clk 0:04:43.1]} 10... Nbd7 {[%clk 0:04:07.7]} 11. Nf4 {[%clk
0:04:20.7]} 11... O-O {[%clk 0:04:05.4]} 12. Nc3 {[%clk 0:04:17.6]} 12... Nc5
{[%clk 0:04:00.9]} 13. Qa2 {[%clk 0:04:15.5]} 13... a5 {[%clk 0:03:59.2]} 14. b3
{[%clk 0:04:12.8]} 14... Bxf4 {[%clk 0:03:57.5]} 15. exf4 {[%clk 0:04:08.8]}
15... Ne6 {[%clk 0:03:54.7]} 16. g3 {[%clk 0:04:06.9]} 16... Bf3 {[%clk
0:03:51.7]} 17. Rg1 {[%clk 0:04:04.5]} 17... Nd4 {[%clk 0:03:45.4]} 18. Bg2
{[%clk 0:04:00.3]} 18... Ng4 {[%clk 0:03:39.2]} 19. Bb2 {[%clk 0:03:55.4]} 19...
Nc2+ {[%clk 0:03:33.7]} 20. Kf1 {[%clk 0:03:52.4]} 20... Nh2# {[%clk 0:03:32.1]}
0-1

[Event "Live Chess"]
[Site "Chess.com"]
[Date "2023.05.21"]
[Round "-"]
[White "matt1979"]
[Black "EdenHazard8"]
[Result "0-1"]
[WhiteElo "1539"]
[BlackElo "1950"]
[TimeControl "300"]
[EndTime "6:03:35 PDT"]
[Termination "EdenHazard8 won by resignation"]

1. f4 {[%clk 0:04:57.2]} 1... d5 {[%clk 0:04:58.3]} 2. e3 {[%clk 0:04:55.2]}
2... c5 {[%clk 0:04:58.2]} 3. Nf3 {[%clk 0:04:53.8]} 3... Nf6 {[%clk 0:04:58.1]}
4. b3 {[%clk 0:04:49.6]} 4... Nc6 {[%clk 0:04:56.1]} 5. Bb5 {[%clk 0:04:47.7]}
5... Bg4 {[%clk 0:04:54.9]} 6. O-O {[%clk 0:04:45.9]} 6... e6 {[%clk 0:04:53.5]}
7. Qe1 {[%clk 0:04:44]} 7... Be7 {[%clk 0:04:51.5]} 8. Ne5 {[%clk 0:04:39.3]}
8... Rc8 {[%clk 0:04:46.8]} 9. Bb2 {[%clk 0:04:32.9]} 9... Bf5 {[%clk
0:04:42.3]} 10. d3 {[%clk 0:04:30]} 10... O-O {[%clk 0:04:33.4]} 11. Bxc6 {[%clk
0:04:25.1]} 11... bxc6 {[%clk 0:04:31.6]} 12. Nd2 {[%clk 0:04:20.2]} 12... Nd7
{[%clk 0:04:30.1]} 13. Nxd7 {[%clk 0:04:16.4]} 13... Qxd7 {[%clk 0:04:29.1]} 14.
Qg3 {[%clk 0:04:10.9]} 14... f6 {[%clk 0:04:26.8]} 15. Nf3 {[%clk 0:04:05.9]}
15... Bg6 {[%clk 0:04:23.2]} 16. Nh4 {[%clk 0:04:02.5]} 16... Bf7 {[%clk
0:04:20.3]} 17. f5 {[%clk 0:03:52.2]} 17... e5 {[%clk 0:04:18.8]} 18. e4 {[%clk
0:03:47.1]} 18... c4 {[%clk 0:04:16.4]} 19. Bc1 {[%clk 0:03:40]} 19... cxb3
{[%clk 0:04:14.5]} 20. Bh6 {[%clk 0:03:37.3]} 20... g5 {[%clk 0:03:59.4]} 21.
fxg6 {[%clk 0:03:34.5]} 21... hxg6 {[%clk 0:03:52.9]} 22. Nxg6 {[%clk 0:03:32]}
22... Kh7 {[%clk 0:03:52.8]} 23. Nxf8+ {[%clk 0:03:16.2]} 23... Bxf8 {[%clk
0:03:52.7]} 24. Bxf8 {[%clk 0:03:08.4]} 24... Rxf8 {[%clk 0:03:52.6]} 25. axb3
{[%clk 0:03:02.6]} 25... dxe4 {[%clk 0:03:45.6]} 26. Qh4+ {[%clk 0:02:55.4]}
26... Kg8 {[%clk 0:03:44.1]} 27. Qxe4 {[%clk 0:02:51.7]} 27... f5 {[%clk
0:03:39]} 28. Qxe5 {[%clk 0:02:45.2]} 28... Bg6 {[%clk 0:03:33.6]} 29. Rf3
{[%clk 0:02:33.6]} 29... Re8 {[%clk 0:03:32.2]} 30. Qf4 {[%clk 0:02:29.1]} 30...
Re4 {[%clk 0:03:24.7]} 31. Qg5 {[%clk 0:02:14.9]} 31... Qd4+ {[%clk 0:03:24.6]}
32. Re3 {[%clk 0:01:59.9]} 32... Rxe3 {[%clk 0:02:12]} 33. Qxg6+ {[%clk
0:01:56.6]} 33... Kf8 {[%clk 0:02:10.9]} 34. Qh6+ {[%clk 0:01:52.2]} 34... Ke8
{[%clk 0:02:09.2]} 35. Qg6+ {[%clk 0:01:50.9]} 35... Kd8 {[%clk 0:02:06.2]} 36.
Qg8+ {[%clk 0:01:43.6]} 36... Re8+ {[%clk 0:02:03.5]} 0-1

[Event "Live Chess"]
[Site "Chess.com"]
[Date "2023.05.21"]
[Round "-"]
[White "LiamClery2020"]
[Black "Conradical12"]
[Result "1-0"]
[WhiteElo "1975"]
[BlackElo "1582"]
[TimeControl "300"]
[EndTime "6:03:40 PDT"]
[Termination "LiamClery2020 won by resignation"]

1. e4 {[%clk 0:04:58.8]} 1... e5 {[%clk 0:04:58.8]} 2. Nc3 {[%clk 0:04:55.3]}
2... Nc6 {[%clk 0:04:57.1]} 3. Bc4 {[%clk 0:04:54.2]} 3... Nf6 {[%clk
0:04:56.2]} 4. d3 {[%clk 0:04:49.7]} 4... Bc5 {[%clk 0:04:54.6]} 5. Nf3 {[%clk
0:04:47.5]} 5... d6 {[%clk 0:04:52.1]} 6. Na4 {[%clk 0:04:46.1]} 6... Bb6 {[%clk
0:04:49.5]} 7. Nxb6 {[%clk 0:04:44.8]} 7... axb6 {[%clk 0:04:47.9]} 8. a3 {[%clk
0:04:44.2]} 8... O-O {[%clk 0:04:46.3]} 9. h3 {[%clk 0:04:41.7]} 9... Be6 {[%clk
0:04:39.7]} 10. Bxe6 {[%clk 0:04:40.6]} 10... fxe6 {[%clk 0:04:38.2]} 11. O-O
{[%clk 0:04:40.2]} 11... h6 {[%clk 0:04:35.7]} 12. c3 {[%clk 0:04:39.3]} 12...
d5 {[%clk 0:04:31.1]} 13. exd5 {[%clk 0:04:37.1]} 13... exd5 {[%clk 0:04:29.6]}
14. Re1 {[%clk 0:04:36.3]} 14... Qd6 {[%clk 0:04:24.5]} 15. b4 {[%clk
0:04:30.6]} 15... Rae8 {[%clk 0:04:22.7]} 16. Bb2 {[%clk 0:04:26.6]} 16... e4
{[%clk 0:04:07.8]} 17. dxe4 {[%clk 0:04:24.8]} 17... Nxe4 {[%clk 0:04:02.4]} 18.
Qd3 {[%clk 0:04:18.5]} 18... Qf6 {[%clk 0:03:42.4]} 19. Qxd5+ {[%clk 0:04:14.9]}
19... Rf7 {[%clk 0:03:38.8]} 20. Rxe4 {[%clk 0:04:13.7]} 20... Rxe4 {[%clk
0:03:36.2]} 21. Qxe4 {[%clk 0:04:12.3]} 21... Ne7 {[%clk 0:03:34.8]} 22. Rd1
{[%clk 0:04:07]} 1-0

[Event "Live Chess"]
[Site "Chess.com"]
[Date "2023.05.21"]
[Round "-"]
[White "SupremeTactician"]
[Black "Asperasummitatem"]
[Result "1-0"]
[WhiteElo "2241"]
[BlackElo "1267"]
[TimeControl "300"]
[EndTime "6:03:54 PDT"]
[Termination "SupremeTactician won by checkmate"]

1. e4 {[%clk 0:04:56.9]} 1... e5 {[%clk 0:04:58.9]} 2. Nf3 {[%clk 0:04:54.4]}
2... Nf6 {[%clk 0:04:56.9]} 3. Nc3 {[%clk 0:04:53.8]} 3... Nc6 {[%clk
0:04:55.8]} 4. Bb5 {[%clk 0:04:52]} 4... Bc5 {[%clk 0:04:54.3]} 5. O-O {[%clk
0:04:49.6]} 5... O-O {[%clk 0:04:53.5]} 6. Nxe5 {[%clk 0:04:47.4]} 6... Nxe5
{[%clk 0:04:48.3]} 7. d4 {[%clk 0:04:46.5]} 7... Bd6 {[%clk 0:04:41.5]} 8. dxe5
{[%clk 0:04:44]} 8... Bxe5 {[%clk 0:04:40.4]} 9. f4 {[%clk 0:04:43.9]} 9... Bxc3
{[%clk 0:04:34.3]} 10. bxc3 {[%clk 0:04:43.8]} 10... Nxe4 {[%clk 0:04:32.9]} 11.
Bd3 {[%clk 0:04:36.3]} 11... Nxc3 {[%clk 0:04:28.5]} 12. Qf3 {[%clk 0:04:29.5]}
12... Na4 {[%clk 0:04:10.5]} 13. Qe4 {[%clk 0:04:24.5]} 13... g6 {[%clk
0:04:01.3]} 14. Qxa4 {[%clk 0:04:21.8]} 14... d6 {[%clk 0:04:00.6]} 15. Bb2
{[%clk 0:04:19.8]} 15... c6 {[%clk 0:03:53.7]} 16. Qd4 {[%clk 0:04:14.6]} 16...
f6 {[%clk 0:03:50.6]} 17. Rae1 {[%clk 0:04:09.5]} 17... d5 {[%clk 0:03:39.3]}
18. c4 {[%clk 0:03:58.7]} 18... Bd7 {[%clk 0:03:27.8]} 19. cxd5 {[%clk
0:03:56.5]} 19... cxd5 {[%clk 0:03:25]} 20. Qxd5+ {[%clk 0:03:54.5]} 20... Kh8
{[%clk 0:03:21.8]} 21. Ba3 {[%clk 0:03:49.5]} 21... Bc6 {[%clk 0:03:10.6]} 22.
Qxd8 {[%clk 0:03:46.3]} 22... Rfxd8 {[%clk 0:03:09.5]} 23. Re3 {[%clk
0:03:42.7]} 23... Rd7 {[%clk 0:03:03]} 24. Bb2 {[%clk 0:03:31.9]} 24... Kg7
{[%clk 0:02:58.5]} 25. Rfe1 {[%clk 0:03:26.5]} 25... Rad8 {[%clk 0:02:48.7]} 26.
Re7+ {[%clk 0:03:19.8]} 26... Rxe7 {[%clk 0:02:47.6]} 27. Rxe7+ {[%clk
0:03:18.9]} 27... Kh6 {[%clk 0:02:46]} 28. Bxf6 {[%clk 0:02:38.3]} 28... Rxd3
{[%clk 0:02:39.2]} 29. g4 {[%clk 0:02:36.8]} 29... Rf3 {[%clk 0:01:53.9]} 30.
Bg5# {[%clk 0:02:31.4]} 1-0

[Event "Live Chess"]
[Site "Chess.com"]
[Date "2023.05.21"]
[Round "-"]
[White "ProfPoisson"]
[Black "AyannaTang"]
[Result "1-0"]
[WhiteElo "1213"]
[BlackElo "230"]
[TimeControl "300"]
[EndTime "6:03:57 PDT"]
[Termination "ProfPoisson won by checkmate"]

1. e4 {[%clk 0:04:55.4]} 1... e5 {[%clk 0:04:58.2]} 2. Nf3 {[%clk 0:04:52.6]}
2... Nc6 {[%clk 0:04:54.3]} 3. d4 {[%clk 0:04:50.3]} 3... exd4 {[%clk
0:04:49.8]} 4. Nxd4 {[%clk 0:04:49]} 4... Nxd4 {[%clk 0:04:47.7]} 5. Qxd4 {[%clk
0:04:47.6]} 5... b6 {[%clk 0:04:45.6]} 6. Nc3 {[%clk 0:04:46.5]} 6... Bc5 {[%clk
0:04:44]} 7. Qd5 {[%clk 0:04:41.3]} 7... c6 {[%clk 0:04:42.1]} 8. Qf5 {[%clk
0:04:34.8]} 8... g6 {[%clk 0:04:40.2]} 9. Qf3 {[%clk 0:04:26.5]} 9... Bd4 {[%clk
0:04:13.3]} 10. Bc4 {[%clk 0:04:24.1]} 10... Bxc3+ {[%clk 0:04:09.6]} 11. Qxc3
{[%clk 0:04:18.9]} 11... Nf6 {[%clk 0:04:03.5]} 12. Bg5 {[%clk 0:04:16.9]} 12...
h5 {[%clk 0:03:58.2]} 13. Bxf6 {[%clk 0:04:14.9]} 13... O-O {[%clk 0:03:52.9]}
14. Bxd8 {[%clk 0:04:12.9]} 14... Rxd8 {[%clk 0:03:51.5]} 15. Qf6 {[%clk
0:04:10.6]} 15... Re8 {[%clk 0:03:47.2]} 16. Qxf7+ {[%clk 0:04:09]} 16... Kh8
{[%clk 0:03:43.1]} 17. Qxe8+ {[%clk 0:04:07.6]} 17... Kg7 {[%clk 0:03:40.5]} 18.
Qg8+ {[%clk 0:04:00.6]} 18... Kf6 {[%clk 0:03:36.6]} 19. f4 {[%clk 0:03:55.5]}
19... Ke7 {[%clk 0:03:34.4]} 20. Qf7+ {[%clk 0:03:52.4]} 20... Kd6 {[%clk
0:03:32.5]} 21. O-O-O+ {[%clk 0:03:50.5]} 21... Kc7 {[%clk 0:03:28.9]} 22. Qxg6
{[%clk 0:03:48.8]} 22... a5 {[%clk 0:03:23.6]} 23. Qxh5 {[%clk 0:03:46.5]} 23...
Ba6 {[%clk 0:03:19.7]} 24. Bxa6 {[%clk 0:03:43.4]} 24... Rxa6 {[%clk 0:03:17.9]}
25. Qe5+ {[%clk 0:03:40.9]} 25... d6 {[%clk 0:03:15.2]} 26. Qxd6+ {[%clk
0:03:39.2]} 26... Kb7 {[%clk 0:03:13.5]} 27. Qd7+ {[%clk 0:03:37.6]} 27... Kb8
{[%clk 0:03:11.9]} 28. Qd8+ {[%clk 0:03:35.6]} 28... Kb7 {[%clk 0:03:10.3]} 29.
Rd7# {[%clk 0:03:35.3]} 1-0

[Event "Live Chess"]
[Site "Chess.com"]
[Date "2023.05.21"]
[Round "-"]
[White "febray_27"]
[Black "JanMur7"]
[Result "1/2-1/2"]
[WhiteElo "2001"]
[BlackElo "1963"]
[TimeControl "300"]
[EndTime "6:04:11 PDT"]
[Termination "Game drawn by repetition"]

1. Nf3 {[%clk 0:04:57]} 1... g6 {[%clk 0:04:58.9]} 2. d4 {[%clk 0:04:55.7]} 2...
Bg7 {[%clk 0:04:58.8]} 3. g3 {[%clk 0:04:51.4]} 3... c5 {[%clk 0:04:57.8]} 4.
Bg2 {[%clk 0:04:48.4]} 4... cxd4 {[%clk 0:04:56.5]} 5. Nxd4 {[%clk 0:04:47.6]}
5... Nc6 {[%clk 0:04:55.5]} 6. Nxc6 {[%clk 0:04:46.6]} 6... bxc6 {[%clk
0:04:55.4]} 7. O-O {[%clk 0:04:45.6]} 7... Nf6 {[%clk 0:04:54.1]} 8. c3 {[%clk
0:04:40.3]} 8... O-O {[%clk 0:04:52.8]} 9. Nd2 {[%clk 0:04:39.8]} 9... d5 {[%clk
0:04:50.9]} 10. Nf3 {[%clk 0:04:38.6]} 10... Ne4 {[%clk 0:04:46.4]} 11. Bf4
{[%clk 0:04:36.6]} 11... Re8 {[%clk 0:04:44]} 12. Nd4 {[%clk 0:04:31.5]} 12...
Bd7 {[%clk 0:04:40.2]} 13. Be3 {[%clk 0:04:25.1]} 13... e5 {[%clk 0:04:34.2]}
14. Nb3 {[%clk 0:04:16.5]} 14... a5 {[%clk 0:04:30.5]} 15. Nc5 {[%clk
0:04:15.1]} 15... Nxc5 {[%clk 0:04:29]} 16. Bxc5 {[%clk 0:04:14.4]} 16... Bf8
{[%clk 0:04:24.1]} 17. Bxf8 {[%clk 0:04:12.1]} 17... Kxf8 {[%clk 0:04:24]} 18.
Qd2 {[%clk 0:04:07]} 18... Kg7 {[%clk 0:04:23]} 19. Rfd1 {[%clk 0:04:05.6]}
19... Rb8 {[%clk 0:04:15.9]} 20. b3 {[%clk 0:04:04.3]} 20... Bf5 {[%clk
0:03:43.7]} 21. e3 {[%clk 0:03:59.2]} 21... e4 {[%clk 0:03:33.9]} 22. Qd4+
{[%clk 0:03:56]} 22... Qf6 {[%clk 0:03:14.7]} 23. Qxf6+ {[%clk 0:03:48.9]} 23...
Kxf6 {[%clk 0:03:14.5]} 24. Rac1 {[%clk 0:03:42.4]} 24... Bg4 {[%clk 0:02:40.1]}
25. Rd4 {[%clk 0:03:37.8]} 25... Ke5 {[%clk 0:02:36.8]} 26. c4 {[%clk
0:03:32.5]} 26... Rbc8 {[%clk 0:02:32.2]} 27. h3 {[%clk 0:03:11.9]} 27... Be6
{[%clk 0:02:24.7]} 28. f4+ {[%clk 0:02:51.6]} 28... exf3 {[%clk 0:02:19.6]} 29.
Bxf3 {[%clk 0:02:49.8]} 29... dxc4 {[%clk 0:02:03.3]} 30. bxc4 {[%clk
0:02:40.4]} 30... Bxh3 {[%clk 0:02:00.1]} 31. Rh4 {[%clk 0:02:37.3]} 31... Bf5
{[%clk 0:01:54.2]} 32. Rxh7 {[%clk 0:02:30.1]} 32... Kf6 {[%clk 0:01:52.7]} 33.
e4 {[%clk 0:02:24.2]} 33... Bxe4 {[%clk 0:01:49.5]} 34. Bxe4 {[%clk 0:02:19.9]}
34... Rxe4 {[%clk 0:01:49.4]} 35. Rf1+ {[%clk 0:02:19.4]} 35... Kg5 {[%clk
0:01:45.4]} 36. Rc1 {[%clk 0:02:01.1]} 36... f5 {[%clk 0:01:37.6]} 37. Rc2
{[%clk 0:01:56.7]} 37... Rce8 {[%clk 0:01:33.1]} 38. Ra7 {[%clk 0:01:53.6]}
38... Re1+ {[%clk 0:01:30.1]} 39. Kf2 {[%clk 0:01:52.9]} 39... Rh1 {[%clk
0:01:26.5]} 40. Kg2 {[%clk 0:01:49]} 40... Rhe1 {[%clk 0:01:24.9]} 41. Kf2
{[%clk 0:01:45.9]} 41... R8e5 {[%clk 0:01:19.5]} 42. c5 {[%clk 0:01:43.5]} 42...
Rh1 {[%clk 0:01:15.7]} 43. Kg2 {[%clk 0:01:42.2]} 43... Rhe1 {[%clk 0:00:56.2]}
44. Kf2 {[%clk 0:01:41]} 44... Rh1 {[%clk 0:00:52.8]} 45. Kg2 {[%clk 0:01:40]}
45... Rhe1 {[%clk 0:00:50.7]} 46. Kf2 {[%clk 0:01:39.1]} 1/2-1/2

[Event "Live Chess"]
[Site "Chess.com"]
[Date "2023.05.21"]
[Round "-"]
[White "garyjc"]
[Black "raminguy"]
[Result "0-1"]
[WhiteElo "1040"]
[BlackElo "1940"]
[TimeControl "300"]
[EndTime "6:04:14 PDT"]
[Termination "raminguy won by resignation"]

1. e4 {[%clk 0:04:57.6]} 1... e5 {[%clk 0:04:59.1]} 2. Nf3 {[%clk 0:04:53.5]}
2... Nc6 {[%clk 0:04:58.3]} 3. d4 {[%clk 0:04:52]} 3... exd4 {[%clk 0:04:57.2]}
4. Nxd4 {[%clk 0:04:50.6]} 4... Qf6 {[%clk 0:04:55.6]} 5. Nxc6 {[%clk
0:04:28.5]} 5... Bc5 {[%clk 0:04:53.3]} 6. Be3 {[%clk 0:04:15.9]} 6... Bxe3
{[%clk 0:04:50.9]} 7. fxe3 {[%clk 0:04:14.9]} 7... dxc6 {[%clk 0:04:49.8]} 8.
Nc3 {[%clk 0:04:12.5]} 8... Qh4+ {[%clk 0:04:46.1]} 9. g3 {[%clk 0:04:10.3]}
9... Qe7 {[%clk 0:04:45.5]} 10. Qe2 {[%clk 0:04:04.7]} 10... Nf6 {[%clk
0:04:44.6]} 11. O-O-O {[%clk 0:04:03.5]} 11... Nxe4 {[%clk 0:04:32.3]} 12. Nxe4
{[%clk 0:03:54.6]} 12... Qxe4 {[%clk 0:04:32.2]} 13. Bg2 {[%clk 0:03:46]} 13...
Qa4 {[%clk 0:04:29.2]} 14. Kb1 {[%clk 0:03:37.5]} 14... Bg4 {[%clk 0:04:20.8]}
15. Qxg4 {[%clk 0:03:23.6]} 15... Qxg4 {[%clk 0:04:18.6]} 0-1

[Event "Live Chess"]
[Site "Chess.com"]
[Date "2023.05.21"]
[Round "-"]
[White "Anirudh_23"]
[Black "sanjesh_ananda"]
[Result "1-0"]
[WhiteElo "1890"]
[BlackElo "1162"]
[TimeControl "300"]
[EndTime "6:04:21 PDT"]
[Termination "Anirudh_23 won by resignation"]

1. Nf3 {[%clk 0:04:58.9]} 1... Nc6 {[%clk 0:04:56.4]} 2. d4 {[%clk 0:04:57.6]}
2... d5 {[%clk 0:04:54.7]} 3. g3 {[%clk 0:04:56.3]} 3... Nf6 {[%clk 0:04:50.5]}
4. Bg2 {[%clk 0:04:55.2]} 4... Bg4 {[%clk 0:04:32.3]} 5. O-O {[%clk 0:04:53.4]}
5... e5 {[%clk 0:04:23.3]} 6. Nxe5 {[%clk 0:04:47.7]} 6... Bd6 {[%clk
0:04:00.8]} 7. Nxg4 {[%clk 0:04:44.1]} 7... Nxg4 {[%clk 0:03:59.2]} 8. e4 {[%clk
0:04:42.8]} 8... Qc8 {[%clk 0:03:34.3]} 9. exd5 {[%clk 0:04:40.1]} 9... Ne7
{[%clk 0:03:28.9]} 10. Bh3 {[%clk 0:04:36.7]} 10... f5 {[%clk 0:03:19.8]} 11. f3
{[%clk 0:04:27.6]} 11... Nf6 {[%clk 0:03:14.1]} 12. c4 {[%clk 0:04:25.3]} 12...
c6 {[%clk 0:02:58.1]} 13. dxc6 {[%clk 0:04:21]} 13... Qxc6 {[%clk 0:02:52.5]}
14. b3 {[%clk 0:04:18.8]} 14... O-O {[%clk 0:02:47.2]} 15. Bb2 {[%clk
0:04:10.5]} 15... Nd7 {[%clk 0:02:28.6]} 16. f4 {[%clk 0:03:57.2]} 16... Bb4
{[%clk 0:01:56.2]} 17. Bg2 {[%clk 0:03:55]} 17... Qg6 {[%clk 0:01:45.9]} 18. a3
{[%clk 0:03:48.8]} 18... Ba5 {[%clk 0:01:42.6]} 19. b4 {[%clk 0:03:46.8]} 19...
Bc7 {[%clk 0:01:35.4]} 20. d5 {[%clk 0:03:43.3]} 20... Nc8 {[%clk 0:01:12.9]}
21. c5 {[%clk 0:03:39.6]} 21... Bd8 {[%clk 0:00:57.5]} 22. Nd2 {[%clk
0:03:34.2]} 22... Bf6 {[%clk 0:00:53.2]} 23. Qb3 {[%clk 0:03:28]} 23... Bxb2
{[%clk 0:00:44.9]} 24. Qxb2 {[%clk 0:03:27.9]} 24... Nf6 {[%clk 0:00:22.3]} 25.
Nc4 {[%clk 0:03:20.9]} 25... Nxd5 {[%clk 0:00:18.8]} 26. Bxd5+ {[%clk
0:03:18.9]} 26... Kh8 {[%clk 0:00:14.8]} 27. Ne5 {[%clk 0:03:18]} 27... Qh6
{[%clk 0:00:09.4]} 28. Nf7+ {[%clk 0:03:13.7]} 1-0